Workbook

Sheet Deriv of Sine
B1: Derivative of the Sine Function
B3: This graphing utility lets you investigate
B4: the derivative of the sine function
B5: based on the slope of the tangent line
B6: at any point from x = 0 to x = 2p.
B10: Select the point of tangency x0 = | F10: =E12 -> 2.1352
D12: 34 | E12: =Sheet3!G1+D12*(Sheet3!G2-Sheet3!G1)/100 -> 2.1352
B15: The slope of the tangent line at x0 = | F15: =E12 -> 2.1352
B16: = the derivative f '( x0) of the function = | G16: =LOOKUP(E12,Sheet3!A3:A1003,Sheet3!C3:C1003) -> -0.5347408497 | I16: =LOOKUP(F15,Sheet3!A3:A631,Sheet3!C3:C631) -> -0.5347408497
A22: Click each item below for suggestions and investigations
C23: Item 1
C24: Item 2
C25: Item 3
A29: To access/download all the DIGMath Apps for Calculus
A30: Click this link: | C30: DIGMath for Calculus
A32: Created by: Sheldon P. Gordon
A33: Farmingdale State College
A34: Development of this module was supported by the
A35: NSF's Division of Undergraduate Education
A36: under grants DUE-0310123 and DUE-0442160.

Sheet Deriv of Cosine
A1: Derivative of the Cosine Function
B3: This graphing utility lets you investigate
B4: the derivative of the cosine function
B5: based on the slope of the tangent line
B6: at any point from x = 0 to x = 2p.
B10: Select the point of tangency x0 = | F10: =E12 -> 2.7632
D12: 44 | E12: =Sheet3!G1+D12*(Sheet3!G2-Sheet3!G1)/100 -> 2.7632
B15: The slope of the tangent line at x0 = | F15: =E12 -> 2.7632
B16: = the derivative f '( x0) of the function = | G16: =-LOOKUP(E12,Sheet3!A3:A631,Sheet3!B3:B631) -> -0.3723990394
A22: Click each item below for suggestions and investigations
C23: Item 1
C24: Item 2
C25: Item 3
A29: To access/download all the DIGMath Apps for Calculus
A30: Click this link: | C30: DIGMath for Calculus
A32: Created by: Sheldon P. Gordon
A33: Farmingdale State College
A34: Development of this module was supported by the
A35: NSF's Division of Undergraduate Education
A36: under grants DUE-0310123 and DUE-0442160.

Sheet Sheet3
A1: x | B1: sine | C1: slope | D1: cosine | E1: slope | F1: xMin = | G1: 0 | H1: xl= | I1: =IF('Deriv of Sine'!$E$12<Sheet3!G1+80*Sheet3!I5,Sheet3!G1,'Deriv of Sine'!E12-80*Sheet3!I5) -> 1.3352 | J1: =LOOKUP('Deriv of Sine'!E12,Sheet3!A3:A631,Sheet3!B3:B631)+LOOKUP('Deriv of Sine'!E12,Sheet3!A3:A631,Sheet3!C3:C631)*(I1-'Deriv of Sine'!E12) -> 1.27547052 | K1: "=yl
F2: xMax = | G2: 6.28 | H2: xr= | I2: =IF('Deriv of Sine'!$E$12>Sheet3!G2-80*Sheet3!I5,Sheet3!G2,'Deriv of Sine'!E12+80*Sheet3!I5) -> 2.9352 | J2: =LOOKUP('Deriv of Sine'!E12,Sheet3!A3:A631,Sheet3!B3:B631)+LOOKUP('Deriv of Sine'!E12,Sheet3!A3:A631,Sheet3!C3:C631)*(I2-'Deriv of Sine'!E12) -> 0.4198851604 | K2: "=yR
A3: 0.00 | B3: =SIN(A3) -> 0 | C3: =(B4-B3)/Sheet3!$I$5 -> 0.9999833334 | D3: =COS(A3) -> 1 | E3: =(D4-D3)/Sheet3!$I$5 -> -0.004999958333 | H3: x0= | I3: ='Deriv of Sine'!F15 -> 2.1352 | J3: y0= | K3: ='Deriv of Sine'!I16 -> -0.5347408497
A4: =A3+Sheet3!I$5 -> 0.01 | B4: =SIN(A4) -> 0.009999833334 | C4: =(B5-B4)/Sheet3!$I$5 -> 0.9998833359 | D4: =COS(A4) -> 0.9999500004 | E4: =(D5-D4)/Sheet3!$I$5 -> -0.01499937501
A5: =A4+Sheet3!I$5 -> 0.02 | B5: 0.01999866669 | C5: =(B6-B5)/Sheet3!$I$5 -> 0.9996833509 | D5: 0.9998000067 | E5: =(D6-D5)/Sheet3!$I$5 -> -0.02499729176 | H5: delta x = | I5: 0.01
A6: =A5+Sheet3!I$5 -> 0.03 | B6: 0.0299955002 | C6: =(B7-B6)/Sheet3!$I$5 -> 0.9993833984 | D6: 0.9995500337 | E6: =(D7-D6)/Sheet3!$I$5 -> -0.0349927088
A7: =A6+Sheet3!I$5 -> 0.04 | B7: 0.03998933419 | C7: =(B8-B7)/Sheet3!$I$5 -> 0.9989835084 | D7: 0.9992001067 | E7: =(D8-D7)/Sheet3!$I$5 -> -0.0449846266
A8: =A7+Sheet3!I$5 -> 0.05 | B8: 0.04997916927 | C8: =(B9-B8)/Sheet3!$I$5 -> 0.9984837209 | D8: 0.9987502604 | E8: =(D9-D8)/Sheet3!$I$5 -> -0.05497204598 | G8: Derivative of Cosine:
A9: =A8+Sheet3!I$5 -> 0.06 | B9: 0.05996400648 | C9: =(B10-B9)/Sheet3!$I$5 -> 0.9978840858 | D9: 0.9982005399 | E9: =(D10-D9)/Sheet3!$I$5 -> -0.06495396819 | H9: xl= | I9: =IF('Deriv of Cosine'!$E$12<Sheet3!G1+80*Sheet3!I5,Sheet3!G1,'Deriv of Cosine'!E12-80*Sheet3!I5) -> 1.9632 | J9: =LOOKUP('Deriv of Cosine'!E12,Sheet3!A3:A631,Sheet3!D3:D631)+LOOKUP('Deriv of Cosine'!E12,Sheet3!A3:A631,Sheet3!E3:E631)*(I9-'Deriv of Cosine'!E12) -> -0.6338707039 | K9: "=yl
A10: =A9+Sheet3!I$5 -> 0.07 | B10: 0.06994284734 | C10: =(B11-B10)/Sheet3!$I$5 -> 0.9971846632 | D10: 0.9975510003 | E10: =(D11-D10)/Sheet3!$I$5 -> -0.07492939507 | H10: xr= | I10: =IF('Deriv of Cosine'!$E$12>Sheet3!G2-80*Sheet3!I5,Sheet3!G2,'Deriv of Cosine'!E12+80*Sheet3!I5) -> 3.5632 | J10: =LOOKUP('Deriv of Cosine'!E12,Sheet3!A3:A631,Sheet3!D3:D631)-LOOKUP('Deriv of Cosine'!E12,Sheet3!A3:A631,Sheet3!B3:B631)*(I10-'Deriv of Cosine'!E12) -> -1.225991942 | K10: "=yR
A11: =A10+Sheet3!I$5 -> 0.08 | B11: 0.07991469397 | C11: =(B12-B11)/Sheet3!$I$5 -> 0.9963855229 | D11: 0.9968017063 | E11: =(D12-D11)/Sheet3!$I$5 -> -0.08489732906 | H11: x0= | I11: ='Deriv of Cosine'!$F$15 -> 2.7632 | J11: y0= | K11: ='Deriv of Cosine'!$G$16 -> -0.3723990394
A12: =A11+Sheet3!I$5 -> 0.09 | B12: 0.0898785492 | C12: =(B13-B12)/Sheet3!$I$5 -> 0.9954867449 | D12: 0.995952733 | E12: =(D13-D12)/Sheet3!$I$5 -> -0.0948567734
A13: =A12+Sheet3!I$5 -> 0.10 | B13: 0.09983341665 | C13: =(B14-B13)/Sheet3!$I$5 -> 0.994488419 | D13: 0.9950041653 | E13: =(D14-D13)/Sheet3!$I$5 -> -0.1048067321
A14: =A13+Sheet3!I$5 -> 0.11 | B14: 0.1097783008 | C14: =(B15-B14)/Sheet3!$I$5 -> 0.9933906452 | D14: 0.993956098 | E14: =(D15-D14)/Sheet3!$I$5 -> -0.1147462103
A15: =A14+Sheet3!I$5 -> 0.12 | B15: 0.1197122073 | C15: =(B16-B15)/Sheet3!$I$5 -> 0.9921935331 | D15: 0.9928086359 | E15: =(D16-D15)/Sheet3!$I$5 -> -0.1246742139
A16: =A15+Sheet3!I$5 -> 0.13 | B16: 0.1296341426 | C16: =(B17-B16)/Sheet3!$I$5 -> 0.9908972025 | D16: 0.9915618937 | E16: =(D17-D16)/Sheet3!$I$5 -> -0.1345897502
A17: =A16+Sheet3!I$5 -> 0.14 | B17: 0.1395431146 | C17: =(B18-B17)/Sheet3!$I$5 -> 0.9895017829 | D17: 0.9902159962 | E17: =(D18-D17)/Sheet3!$I$5 -> -0.1444918277
A18: =A17+Sheet3!I$5 -> 0.15 | B18: 0.1494381325 | C18: =(B19-B18)/Sheet3!$I$5 -> 0.9880074141 | D18: 0.9887710779 | E18: =(D19-D18)/Sheet3!$I$5 -> -0.154379456
A19: =A18+Sheet3!I$5 -> 0.16 | B19: 0.1593182066 | C19: =(B20-B19)/Sheet3!$I$5 -> 0.9864142453 | D19: 0.9872272834 | E19: =(D20-D19)/Sheet3!$I$5 -> -0.1642516466
A20: =A19+Sheet3!I$5 -> 0.17 | B20: 0.1691823491 | C20: =(B21-B20)/Sheet3!$I$5 -> 0.9847224359 | D20: 0.9855847669 | E20: =(D21-D20)/Sheet3!$I$5 -> -0.1741074121
A21: =A20+Sheet3!I$5 -> 0.18 | B21: 0.1790295734 | C21: =(B22-B21)/Sheet3!$I$5 -> 0.9829321551 | D21: 0.9838436928 | E21: =(D22-D21)/Sheet3!$I$5 -> -0.1839457671
A22: =A21+Sheet3!I$5 -> 0.19 | B22: 0.188858895 | C22: =(B23-B22)/Sheet3!$I$5 -> 0.9810435819 | D22: 0.9820042351 | E22: =(D23-D22)/Sheet3!$I$5 -> -0.1937657276
A23: =A22+Sheet3!I$5 -> 0.20 | B23: 0.1986693308 | C23: =(B24-B23)/Sheet3!$I$5 -> 0.9790569051 | D23: 0.9800665778 | E23: =(D24-D23)/Sheet3!$I$5 -> -0.2035663117
A24: =A23+Sheet3!I$5 -> 0.21 | B24: 0.2084598998 | C24: =(B25-B24)/Sheet3!$I$5 -> 0.9769723235 | D24: 0.9780309147 | E24: =(D25-D24)/Sheet3!$I$5 -> -0.2133465394
A25: =A24+Sheet3!I$5 -> 0.22 | B25: 0.2182296231 | C25: =(B26-B25)/Sheet3!$I$5 -> 0.9747900454 | D25: 0.9758974493 | E25: =(D26-D25)/Sheet3!$I$5 -> -0.2231054325
A26: =A25+Sheet3!I$5 -> 0.23 | B26: 0.2279775235 | C26: =(B27-B26)/Sheet3!$I$5 -> 0.9725102892 | D26: 0.973666395 | E26: =(D27-D26)/Sheet3!$I$5 -> -0.2328420153
A27: =A26+Sheet3!I$5 -> 0.24 | B27: 0.2377026264 | C27: =(B28-B27)/Sheet3!$I$5 -> 0.9701332827 | D27: 0.9713379749 | E27: =(D28-D27)/Sheet3!$I$5 -> -0.2425553141
A28: =A27+Sheet3!I$5 -> 0.25 | B28: 0.2474039593 | C28: =(B29-B28)/Sheet3!$I$5 -> 0.9676592638 | D28: 0.9689124217 | E28: =(D29-D28)/Sheet3!$I$5 -> -0.2522443576
A29: =A28+Sheet3!I$5 -> 0.26 | B29: 0.2570805519 | C29: =(B30-B29)/Sheet3!$I$5 -> 0.9650884797 | D29: 0.9663899781 | E29: =(D30-D29)/Sheet3!$I$5 -> -0.2619081769
A30: =A29+Sheet3!I$5 -> 0.27 | B30: 0.2667314367 | C30: =(B31-B30)/Sheet3!$I$5 -> 0.9624211875 | D30: 0.9637708964 | E30: =(D31-D30)/Sheet3!$I$5 -> -0.2715458055
A31: =A30+Sheet3!I$5 -> 0.28 | B31: 0.2763556486 | C31: =(B32-B31)/Sheet3!$I$5 -> 0.9596576541 | D31: 0.9610554383 | E31: =(D32-D31)/Sheet3!$I$5 -> -0.2811562798
A32: =A31+Sheet3!I$5 -> 0.29 | B32: 0.2859522251 | C32: =(B33-B32)/Sheet3!$I$5 -> 0.9567981557 | D32: 0.9582438755 | E32: =(D33-D32)/Sheet3!$I$5 -> -0.2907386387
A33: =A32+Sheet3!I$5 -> 0.30 | B33: 0.2955202067 | C33: =(B34-B33)/Sheet3!$I$5 -> 0.9538429782 | D33: 0.9553364891 | E33: =(D34-D33)/Sheet3!$I$5 -> -0.300291924
A34: =A33+Sheet3!I$5 -> 0.31 | B34: 0.3050586364 | C34: =(B35-B34)/Sheet3!$I$5 -> 0.9507924173 | D34: 0.9523335699 | E34: =(D35-D34)/Sheet3!$I$5 -> -0.3098151803
A35: =A34+Sheet3!I$5 -> 0.32 | B35: 0.3145665606 | C35: =(B36-B35)/Sheet3!$I$5 -> 0.9476467779 | D35: 0.9492354181 | E35: =(D36-D35)/Sheet3!$I$5 -> -0.3193074554
A36: =A35+Sheet3!I$5 -> 0.33 | B36: 0.3240430284 | C36: =(B37-B36)/Sheet3!$I$5 -> 0.9444063746 | D36: 0.9460423435 | E36: =(D37-D36)/Sheet3!$I$5 -> -0.3287678
A37: =A36+Sheet3!I$5 -> 0.34 | B37: 0.3334870921 | C37: =(B38-B37)/Sheet3!$I$5 -> 0.9410715315 | D37: 0.9427546655 | E37: =(D38-D37)/Sheet3!$I$5 -> -0.3381952681
A38: =A37+Sheet3!I$5 -> 0.35 | B38: 0.3428978075 | C38: =(B39-B38)/Sheet3!$I$5 -> 0.937642582 | D38: 0.9393727128 | E38: =(D39-D38)/Sheet3!$I$5 -> -0.3475889169
A39: =A38+Sheet3!I$5 -> 0.36 | B39: 0.3522742333 | C39: =(B40-B39)/Sheet3!$I$5 -> 0.934119869 | D39: 0.9358968237 | E39: =(D40-D39)/Sheet3!$I$5 -> -0.3569478072
A40: =A39+Sheet3!I$5 -> 0.37 | B40: 0.361615432 | C40: =(B41-B40)/Sheet3!$I$5 -> 0.9305037448 | D40: 0.9323273456 | E40: =(D41-D40)/Sheet3!$I$5 -> -0.366271003
A41: =A40+Sheet3!I$5 -> 0.38 | B41: 0.3709204694 | C41: =(B42-B41)/Sheet3!$I$5 -> 0.926794571 | D41: 0.9286646356 | E41: =(D42-D41)/Sheet3!$I$5 -> -0.3755575719
A42: =A41+Sheet3!I$5 -> 0.39 | B42: 0.3801884151 | C42: =(B43-B42)/Sheet3!$I$5 -> 0.9229927185 | D42: 0.9249090599 | E42: =(D43-D42)/Sheet3!$I$5 -> -0.3848065854
A43: =A42+Sheet3!I$5 -> 0.40 | B43: 0.3894183423 | C43: =(B44-B43)/Sheet3!$I$5 -> 0.9190985676 | D43: 0.921060994 | E43: =(D44-D43)/Sheet3!$I$5 -> -0.3940171186
A44: =A43+Sheet3!I$5 -> 0.41 | B44: 0.398609328 | C44: =(B45-B44)/Sheet3!$I$5 -> 0.9151125075 | D44: 0.9171208228 | E44: =(D45-D44)/Sheet3!$I$5 -> -0.4031882504
A45: =A44+Sheet3!I$5 -> 0.42 | B45: 0.4077604531 | C45: =(B46-B45)/Sheet3!$I$5 -> 0.911034937 | D45: 0.9130889403 | E45: =(D46-D45)/Sheet3!$I$5 -> -0.4123190637
A46: =A45+Sheet3!I$5 -> 0.43 | B46: 0.4168708024 | C46: =(B47-B46)/Sheet3!$I$5 -> 0.9068662637 | D46: 0.9089657497 | E46: =(D47-D46)/Sheet3!$I$5 -> -0.4214086455
A47: =A46+Sheet3!I$5 -> 0.44 | B47: 0.4259394651 | C47: =(B48-B47)/Sheet3!$I$5 -> 0.9026069045 | D47: 0.9047516632 | E47: =(D48-D47)/Sheet3!$I$5 -> -0.4304560867
A48: =A47+Sheet3!I$5 -> 0.45 | B48: 0.4349655341 | C48: =(B49-B48)/Sheet3!$I$5 -> 0.8982572854 | D48: 0.9004471024 | E48: =(D49-D48)/Sheet3!$I$5 -> -0.4394604827
A49: =A48+Sheet3!I$5 -> 0.46 | B49: 0.443948107 | C49: =(B50-B49)/Sheet3!$I$5 -> 0.8938178414 | D49: 0.8960524975 | E49: =(D50-D49)/Sheet3!$I$5 -> -0.448420933
A50: =A49+Sheet3!I$5 -> 0.47 | B50: 0.4528862854 | C50: =(B51-B50)/Sheet3!$I$5 -> 0.8892890162 | D50: 0.8915682882 | E50: =(D51-D50)/Sheet3!$I$5 -> -0.4573365416
A51: =A50+Sheet3!I$5 -> 0.48 | B51: 0.4617791755 | C51: =(B52-B51)/Sheet3!$I$5 -> 0.884671263 | D51: 0.8869949228 | E51: =(D52-D51)/Sheet3!$I$5 -> -0.4662064169
A52: =A51+Sheet3!I$5 -> 0.49 | B52: 0.4706258882 | C52: =(B53-B52)/Sheet3!$I$5 -> 0.8799650433 | D52: 0.8823328586 | E52: =(D53-D52)/Sheet3!$I$5 -> -0.475029672
A53: =A52+Sheet3!I$5 -> 0.50 | B53: 0.4794255386 | C53: =(B54-B53)/Sheet3!$I$5 -> 0.8751708279 | D53: 0.8775825619 | E53: =(D54-D53)/Sheet3!$I$5 -> -0.4838054245
A54: =A53+Sheet3!I$5 -> 0.51 | B54: 0.4881772469 | C54: =(B55-B54)/Sheet3!$I$5 -> 0.8702890961 | D54: 0.8727445076 | E54: =(D55-D54)/Sheet3!$I$5 -> -0.4925327968
A55: =A54+Sheet3!I$5 -> 0.52 | B55: 0.4968801378 | C55: =(B56-B55)/Sheet3!$I$5 -> 0.8653203361 | D55: 0.8678191797 | E55: =(D56-D55)/Sheet3!$I$5 -> -0.5012109163
A56: =A55+Sheet3!I$5 -> 0.53 | B56: 0.5055333412 | C56: =(B57-B56)/Sheet3!$I$5 -> 0.8602650448 | D56: 0.8628070705 | E56: =(D57-D56)/Sheet3!$I$5 -> -0.5098389151
A57: =A56+Sheet3!I$5 -> 0.54 | B57: 0.5141359917 | C57: =(B58-B57)/Sheet3!$I$5 -> 0.8551237278 | D57: 0.8577086814 | E57: =(D58-D57)/Sheet3!$I$5 -> -0.5184159304
A58: =A57+Sheet3!I$5 -> 0.55 | B58: 0.5226872289 | C58: =(B59-B58)/Sheet3!$I$5 -> 0.849896899 | D58: 0.8525245221 | E58: =(D59-D58)/Sheet3!$I$5 -> -0.5269411046
A59: =A58+Sheet3!I$5 -> 0.56 | B59: 0.5311861979 | C59: =(B60-B59)/Sheet3!$I$5 -> 0.8445850813 | D59: 0.847255111 | E59: =(D60-D59)/Sheet3!$I$5 -> -0.5354135851
A60: =A59+Sheet3!I$5 -> 0.57 | B60: 0.5396320487 | C60: =(B61-B60)/Sheet3!$I$5 -> 0.8391888058 | D60: 0.8419009752 | E60: =(D61-D60)/Sheet3!$I$5 -> -0.5438325247
A61: =A60+Sheet3!I$5 -> 0.58 | B61: 0.5480239368 | C61: =(B62-B61)/Sheet3!$I$5 -> 0.8337086121 | D61: 0.8364626499 | E61: =(D62-D61)/Sheet3!$I$5 -> -0.5521970815
A62: =A61+Sheet3!I$5 -> 0.59 | B62: 0.5563610229 | C62: =(B63-B62)/Sheet3!$I$5 -> 0.8281450482 | D62: 0.8309406791 | E62: =(D63-D62)/Sheet3!$I$5 -> -0.560506419
A63: =A62+Sheet3!I$5 -> 0.60 | B63: 0.5646424734 | C63: =(B64-B63)/Sheet3!$I$5 -> 0.8224986705 | D63: 0.8253356149 | E63: =(D64-D63)/Sheet3!$I$5 -> -0.5687597064
A64: =A63+Sheet3!I$5 -> 0.61 | B64: 0.5728674601 | C64: =(B65-B64)/Sheet3!$I$5 -> 0.8167700437 | D64: 0.8196480178 | E64: =(D65-D64)/Sheet3!$I$5 -> -0.5769561183
A65: =A64+Sheet3!I$5 -> 0.62 | B65: 0.5810351605 | C65: =(B66-B65)/Sheet3!$I$5 -> 0.8109597405 | D65: 0.8138784567 | E65: =(D66-D65)/Sheet3!$I$5 -> -0.585094835
A66: =A65+Sheet3!I$5 -> 0.63 | B66: 0.5891447579 | C66: =(B67-B66)/Sheet3!$I$5 -> 0.805068342 | D66: 0.8080275083 | E66: =(D67-D66)/Sheet3!$I$5 -> -0.5931750428
A67: =A66+Sheet3!I$5 -> 0.64 | B67: 0.5971954414 | C67: =(B68-B67)/Sheet3!$I$5 -> 0.7990964374 | D67: 0.8020957579 | E67: =(D68-D67)/Sheet3!$I$5 -> -0.6011959335
A68: =A67+Sheet3!I$5 -> 0.65 | B68: =SIN(A68) -> 0.6051864057 | C68: =(B69-B68)/Sheet3!$I$5 -> 0.7930446237 | D68: =COS(A68) -> 0.7960837985 | E68: =(D69-D68)/Sheet3!$I$5 -> -0.6091567052
A69: =A68+Sheet3!I$5 -> 0.66 | B69: 0.613116852 | C69: =(B70-B69)/Sheet3!$I$5 -> 0.7869135063 | D69: 0.7899922315 | E69: =(D70-D69)/Sheet3!$I$5 -> -0.6170565617
A70: =A69+Sheet3!I$5 -> 0.67 | B70: 0.620985987 | C70: =(B71-B70)/Sheet3!$I$5 -> 0.7807036982 | D70: 0.7838216659 | E70: =(D71-D70)/Sheet3!$I$5 -> -0.624894713
A71: =A70+Sheet3!I$5 -> 0.68 | B71: 0.628793024 | C71: =(B72-B71)/Sheet3!$I$5 -> 0.7744158203 | D71: 0.7775727188 | E71: =(D72-D71)/Sheet3!$I$5 -> -0.6326703754
A72: =A71+Sheet3!I$5 -> 0.69 | B72: 0.6365371822 | C72: =(B73-B72)/Sheet3!$I$5 -> 0.7680505016 | D72: 0.771246015 | E72: =(D73-D72)/Sheet3!$I$5 -> -0.6403827713
A73: =A72+Sheet3!I$5 -> 0.70 | B73: 0.6442176872 | C73: =(B74-B73)/Sheet3!$I$5 -> 0.7616083784 | D73: 0.7648421873 | E73: =(D74-D73)/Sheet3!$I$5 -> -0.6480311294
A74: =A73+Sheet3!I$5 -> 0.71 | B74: 0.651833771 | C74: =(B75-B74)/Sheet3!$I$5 -> 0.755090095 | D74: 0.758361876 | E74: =(D75-D74)/Sheet3!$I$5 -> -0.655614685
A75: =A74+Sheet3!I$5 -> 0.72 | B75: 0.659384672 | C75: =(B76-B75)/Sheet3!$I$5 -> 0.7484963032 | D75: 0.7518057291 | E75: =(D76-D75)/Sheet3!$I$5 -> -0.6631326796
A76: =A75+Sheet3!I$5 -> 0.73 | B76: 0.666869635 | C76: =(B77-B76)/Sheet3!$I$5 -> 0.7418276624 | D76: 0.7451744023 | E76: =(D77-D76)/Sheet3!$I$5 -> -0.6705843615
A77: =A76+Sheet3!I$5 -> 0.74 | B77: 0.6742879116 | C77: =(B78-B77)/Sheet3!$I$5 -> 0.7350848395 | D77: 0.7384685587 | E77: =(D78-D77)/Sheet3!$I$5 -> -0.6779689856
A78: =A77+Sheet3!I$5 -> 0.75 | B78: 0.68163876 | C78: =(B79-B78)/Sheet3!$I$5 -> 0.7282685087 | D78: 0.7316888689 | E78: =(D79-D78)/Sheet3!$I$5 -> -0.6852858133
A79: =A78+Sheet3!I$5 -> 0.76 | B79: 0.6889214451 | C79: =(B80-B79)/Sheet3!$I$5 -> 0.7213793517 | D79: 0.7248360107 | E79: =(D80-D79)/Sheet3!$I$5 -> -0.692534113
A80: =A79+Sheet3!I$5 -> 0.77 | B80: 0.6961352386 | C80: =(B81-B80)/Sheet3!$I$5 -> 0.7144180573 | D80: 0.7179106696 | E80: =(D81-D80)/Sheet3!$I$5 -> -0.6997131599
A81: =A80+Sheet3!I$5 -> 0.78 | B81: 0.7032794192 | C81: =(B82-B81)/Sheet3!$I$5 -> 0.7073853217 | D81: 0.710913538 | E81: =(D82-D81)/Sheet3!$I$5 -> -0.706822236
A82: =A81+Sheet3!I$5 -> 0.79 | B82: 0.7103532724 | C82: =(B83-B82)/Sheet3!$I$5 -> 0.7002818482 | D82: 0.7038453157 | E82: =(D83-D82)/Sheet3!$I$5 -> -0.7138606305
A83: =A82+Sheet3!I$5 -> 0.80 | B83: 0.7173560909 | C83: =(B84-B83)/Sheet3!$I$5 -> 0.6931083471 | D83: 0.6967067093 | E83: =(D84-D83)/Sheet3!$I$5 -> -0.7208276395
A84: =A83+Sheet3!I$5 -> 0.81 | B84: 0.7242871744 | C84: =(B85-B84)/Sheet3!$I$5 -> 0.6858655357 | D84: 0.689498433 | E84: =(D85-D84)/Sheet3!$I$5 -> -0.7277225664
A85: =A84+Sheet3!I$5 -> 0.82 | B85: 0.7311458297 | C85: =(B86-B85)/Sheet3!$I$5 -> 0.6785541383 | D85: 0.6822212073 | E85: =(D86-D85)/Sheet3!$I$5 -> -0.7345447216
A86: =A85+Sheet3!I$5 -> 0.83 | B86: 0.7379313711 | C86: =(B87-B86)/Sheet3!$I$5 -> 0.6711748861 | D86: 0.6748757601 | E86: =(D87-D86)/Sheet3!$I$5 -> -0.741293423
A87: =A86+Sheet3!I$5 -> 0.84 | B87: 0.74464312 | C87: =(B88-B87)/Sheet3!$I$5 -> 0.6637285169 | D87: 0.6674628258 | E87: =(D88-D87)/Sheet3!$I$5 -> -0.7479679956
A88: =A87+Sheet3!I$5 -> 0.85 | B88: 0.7512804051 | C88: =(B89-B88)/Sheet3!$I$5 -> 0.6562157755 | D88: 0.6599831459 | E88: =(D89-D88)/Sheet3!$I$5 -> -0.7545677721
A89: =A88+Sheet3!I$5 -> 0.86 | B89: 0.7578425629 | C89: =(B90-B89)/Sheet3!$I$5 -> 0.648637413 | D89: 0.6524374682 | E89: =(D90-D89)/Sheet3!$I$5 -> -0.7610920924
A90: =A89+Sheet3!I$5 -> 0.87 | B90: 0.764328937 | C90: =(B91-B90)/Sheet3!$I$5 -> 0.6409941873 | D90: 0.6448265472 | E90: =(D91-D90)/Sheet3!$I$5 -> -0.7675403041
A91: =A90+Sheet3!I$5 -> 0.88 | B91: 0.7707388789 | C91: =(B92-B91)/Sheet3!$I$5 -> 0.6332868628 | D91: 0.6371511442 | E91: =(D92-D91)/Sheet3!$I$5 -> -0.7739117625
A92: =A91+Sheet3!I$5 -> 0.89 | B92: 0.7770717475 | C92: =(B93-B92)/Sheet3!$I$5 -> 0.6255162101 | D92: 0.6294120266 | E92: =(D93-D92)/Sheet3!$I$5 -> -0.7802058303
A93: =A92+Sheet3!I$5 -> 0.90 | B93: 0.7833269096 | C93: =(B94-B93)/Sheet3!$I$5 -> 0.6176830062 | D93: 0.6216099683 | E93: =(D94-D93)/Sheet3!$I$5 -> -0.7864218782
A94: =A93+Sheet3!I$5 -> 0.91 | B94: 0.7895037397 | C94: =(B95-B94)/Sheet3!$I$5 -> 0.6097880346 | D94: 0.6137457495 | E94: =(D95-D94)/Sheet3!$I$5 -> -0.7925592845
A95: =A94+Sheet3!I$5 -> 0.92 | B95: 0.79560162 | C95: =(B96-B95)/Sheet3!$I$5 -> 0.6018320847 | D95: 0.6058201566 | E95: =(D96-D95)/Sheet3!$I$5 -> -0.7986174356
A96: =A95+Sheet3!I$5 -> 0.93 | B96: 0.8016199409 | C96: =(B97-B96)/Sheet3!$I$5 -> 0.5938159521 | D96: 0.5978339823 | E96: =(D97-D96)/Sheet3!$I$5 -> -0.8045957256
A97: =A96+Sheet3!I$5 -> 0.94 | B97: 0.8075581004 | C97: =(B98-B97)/Sheet3!$I$5 -> 0.5857404384 | D97: 0.589788025 | E97: =(D98-D97)/Sheet3!$I$5 -> -0.8104935567
A98: =A97+Sheet3!I$5 -> 0.95 | B98: 0.8134155048 | C98: =(B99-B98)/Sheet3!$I$5 -> 0.5776063512 | D98: 0.5816830895 | E98: =(D99-D98)/Sheet3!$I$5 -> -0.8163103391
A99: =A98+Sheet3!I$5 -> 0.96 | B99: 0.8191915683 | C99: =(B100-B99)/Sheet3!$I$5 -> 0.5694145037 | D99: 0.5735199861 | E99: =(D100-D99)/Sheet3!$I$5 -> -0.8220454912
A100: =A99+Sheet3!I$5 -> 0.97 | B100: 0.8248857133 | C100: =(B101-B100)/Sheet3!$I$5 -> 0.5611657154 | D100: 0.5652995312 | E100: =(D101-D100)/Sheet3!$I$5 -> -0.8276984394
A101: =A100+Sheet3!I$5 -> 0.98 | B101: 0.8304973705 | C101: =(B102-B101)/Sheet3!$I$5 -> 0.5528608109 | D101: 0.5570225468 | E101: =(D102-D101)/Sheet3!$I$5 -> -0.8332686185
A102: =A101+Sheet3!I$5 -> 0.99 | B102: 0.8360259786 | C102: =(B103-B102)/Sheet3!$I$5 -> 0.5445006207 | D102: 0.5486898606 | E102: =(D103-D102)/Sheet3!$I$5 -> -0.8387554713
A103: =A102+Sheet3!I$5 -> 1.00 | B103: 0.8414709848 | C103: =(B104-B103)/Sheet3!$I$5 -> 0.536085981 | D103: 0.5403023059 | E103: =(D104-D103)/Sheet3!$I$5 -> -0.8441584494
A104: =A103+Sheet3!I$5 -> 1.01 | B104: 0.8468318446 | C104: =(B105-B104)/Sheet3!$I$5 -> 0.5276177331 | D104: 0.5318607214 | E104: =(D105-D104)/Sheet3!$I$5 -> -0.8494770123
A105: =A104+Sheet3!I$5 -> 1.02 | B105: 0.8521080219 | C105: =(B106-B105)/Sheet3!$I$5 -> 0.5190967239 | D105: 0.5233659513 | E105: =(D106-D105)/Sheet3!$I$5 -> -0.8547106282
A106: =A105+Sheet3!I$5 -> 1.03 | B106: 0.8572989892 | C106: =(B107-B106)/Sheet3!$I$5 -> 0.5105238055 | D106: 0.514818845 | E106: =(D107-D106)/Sheet3!$I$5 -> -0.8598587737
A107: =A106+Sheet3!I$5 -> 1.04 | B107: 0.8624042272 | C107: =(B108-B107)/Sheet3!$I$5 -> 0.5018998351 | D107: 0.5062202572 | E107: =(D108-D107)/Sheet3!$I$5 -> -0.8649209341
A108: =A107+Sheet3!I$5 -> 1.05 | B108: 0.8674232256 | C108: =(B109-B108)/Sheet3!$I$5 -> 0.4932256751 | D108: 0.4975710479 | E108: =(D109-D108)/Sheet3!$I$5 -> -0.8698966031
A109: =A108+Sheet3!I$5 -> 1.06 | B109: 0.8723554823 | C109: =(B110-B109)/Sheet3!$I$5 -> 0.484502193 | D109: 0.4888720819 | E109: =(D110-D109)/Sheet3!$I$5 -> -0.8747852832
A110: =A109+Sheet3!I$5 -> 1.07 | B110: 0.8772005043 | C110: =(B111-B110)/Sheet3!$I$5 -> 0.475730261 | D110: 0.480124229 | E110: =(D111-D110)/Sheet3!$I$5 -> -0.8795864855
A111: =A110+Sheet3!I$5 -> 1.08 | B111: 0.8819578069 | C111: =(B112-B111)/Sheet3!$I$5 -> 0.4669107565 | D111: 0.4713283642 | E111: =(D112-D111)/Sheet3!$I$5 -> -0.8842997298
A112: =A111+Sheet3!I$5 -> 1.09 | B112: 0.8866269144 | C112: =(B113-B112)/Sheet3!$I$5 -> 0.4580445612 | D112: 0.4624853669 | E112: =(D113-D112)/Sheet3!$I$5 -> -0.888924545
A113: =A112+Sheet3!I$5 -> 1.10 | B113: 0.8912073601 | C113: =(B114-B113)/Sheet3!$I$5 -> 0.4491325619 | D113: 0.4535961214 | E113: =(D114-D113)/Sheet3!$I$5 -> -0.8934604684
A114: =A113+Sheet3!I$5 -> 1.11 | B114: 0.8956986857 | C114: =(B115-B114)/Sheet3!$I$5 -> 0.4401756496 | D114: 0.4446615167 | E114: =(D115-D114)/Sheet3!$I$5 -> -0.8979070465
A115: =A114+Sheet3!I$5 -> 1.12 | B115: 0.9001004422 | C115: =(B116-B115)/Sheet3!$I$5 -> 0.4311747202 | D115: 0.4356824463 | E115: =(D116-D115)/Sheet3!$I$5 -> -0.9022638347
A116: =A115+Sheet3!I$5 -> 1.13 | B116: 0.9044121894 | C116: =(B117-B116)/Sheet3!$I$5 -> 0.4221306737 | D116: 0.4266598079 | E116: =(D117-D116)/Sheet3!$I$5 -> -0.9065303972
A117: =A116+Sheet3!I$5 -> 1.14 | B117: 0.9086334961 | C117: =(B118-B117)/Sheet3!$I$5 -> 0.4130444145 | D117: 0.417594504 | E117: =(D118-D117)/Sheet3!$I$5 -> -0.9107063074
A118: =A117+Sheet3!I$5 -> 1.15 | B118: 0.9127639403 | C118: =(B119-B118)/Sheet3!$I$5 -> 0.4039168511 | D118: 0.4084874409 | E118: =(D119-D118)/Sheet3!$I$5 -> -0.9147911478
A119: =A118+Sheet3!I$5 -> 1.16 | B119: 0.9168031088 | C119: =(B120-B119)/Sheet3!$I$5 -> 0.3947488964 | D119: 0.3993395294 | E119: =(D120-D119)/Sheet3!$I$5 -> -0.9187845098
A120: =A119+Sheet3!I$5 -> 1.17 | B120: 0.9207505977 | C120: =(B121-B120)/Sheet3!$I$5 -> 0.3855414672 | D120: 0.3901516843 | E120: =(D121-D120)/Sheet3!$I$5 -> -0.9226859941
A121: =A120+Sheet3!I$5 -> 1.18 | B121: 0.9246060124 | C121: =(B122-B121)/Sheet3!$I$5 -> 0.3762954841 | D121: 0.3809248244 | E121: =(D122-D121)/Sheet3!$I$5 -> -0.9264952106
A122: =A121+Sheet3!I$5 -> 1.19 | B122: 0.9283689672 | C122: =(B123-B122)/Sheet3!$I$5 -> 0.3670118718 | D122: 0.3716598723 | E122: =(D123-D122)/Sheet3!$I$5 -> -0.9302117784
A123: =A122+Sheet3!I$5 -> 1.20 | B123: 0.932039086 | C123: =(B124-B123)/Sheet3!$I$5 -> 0.3576915586 | D123: 0.3623577545 | E123: =(D124-D123)/Sheet3!$I$5 -> -0.9338353257
A124: =A123+Sheet3!I$5 -> 1.21 | B124: 0.9356160016 | C124: =(B125-B124)/Sheet3!$I$5 -> 0.3483354766 | D124: 0.3530194012 | E124: =(D125-D124)/Sheet3!$I$5 -> -0.9373654903
A125: =A124+Sheet3!I$5 -> 1.22 | B125: 0.9390993563 | C125: =(B126-B125)/Sheet3!$I$5 -> 0.3389445613 | D125: 0.3436457463 | E125: =(D126-D125)/Sheet3!$I$5 -> -0.9408019192
A126: =A125+Sheet3!I$5 -> 1.23 | B126: 0.9424888019 | C126: =(B127-B126)/Sheet3!$I$5 -> 0.3295197518 | D126: 0.3342377271 | E126: =(D127-D126)/Sheet3!$I$5 -> -0.9441442686
A127: =A126+Sheet3!I$5 -> 1.24 | B127: 0.9457839994 | C127: =(B128-B127)/Sheet3!$I$5 -> 0.3200619906 | D127: 0.3247962844 | E127: =(D128-D127)/Sheet3!$I$5 -> -0.9473922044
A128: =A127+Sheet3!I$5 -> 1.25 | B128: 0.9489846194 | C128: =(B129-B128)/Sheet3!$I$5 -> 0.3105722235 | D128: 0.3153223624 | E128: =(D129-D128)/Sheet3!$I$5 -> -0.9505454017
A129: =A128+Sheet3!I$5 -> 1.26 | B129: 0.9520903416 | C129: =(B130-B129)/Sheet3!$I$5 -> 0.3010513994 | D129: 0.3058169084 | E129: =(D130-D129)/Sheet3!$I$5 -> -0.9536035453
A130: =A129+Sheet3!I$5 -> 1.27 | B130: 0.9551008556 | C130: =(B131-B130)/Sheet3!$I$5 -> 0.2915004705 | D130: 0.2962808729 | E130: =(D131-D130)/Sheet3!$I$5 -> -0.9565663293
A131: =A130+Sheet3!I$5 -> 1.28 | B131: 0.9580158603 | C131: =(B132-B131)/Sheet3!$I$5 -> 0.2819203917 | D131: 0.2867152096 | E131: =(D132-D131)/Sheet3!$I$5 -> -0.9594334575
A132: =A131+Sheet3!I$5 -> 1.29 | B132: =SIN(A132) -> 0.9608350642 | C132: =(B133-B132)/Sheet3!$I$5 -> 0.2723121211 | D132: =COS(A132) -> 0.2771208751 | E132: =(D133-D132)/Sheet3!$I$5 -> -0.9622046432
A133: =A132+Sheet3!I$5 -> 1.30 | B133: 0.9635581854 | C133: =(B134-B133)/Sheet3!$I$5 -> 0.2626766196 | D133: 0.2674988286 | E133: =(D134-D133)/Sheet3!$I$5 -> -0.9648796092
A134: =A133+Sheet3!I$5 -> 1.31 | B134: 0.9661849516 | C134: =(B135-B134)/Sheet3!$I$5 -> 0.2530148506 | D134: 0.2578500325 | E134: =(D135-D134)/Sheet3!$I$5 -> -0.967458088
A135: =A134+Sheet3!I$5 -> 1.32 | B135: 0.9687151001 | C135: =(B136-B135)/Sheet3!$I$5 -> 0.2433277803 | D135: 0.2481754517 | E135: =(D136-D135)/Sheet3!$I$5 -> -0.9699398219
A136: =A135+Sheet3!I$5 -> 1.33 | B136: 0.9711483779 | C136: =(B137-B136)/Sheet3!$I$5 -> 0.2336163774 | D136: 0.2384760534 | E136: =(D137-D136)/Sheet3!$I$5 -> -0.9723245625
A137: =A136+Sheet3!I$5 -> 1.34 | B137: 0.9734845417 | C137: =(B138-B137)/Sheet3!$I$5 -> 0.2238816131 | D137: 0.2287528078 | E137: =(D138-D137)/Sheet3!$I$5 -> -0.9746120715
A138: =A137+Sheet3!I$5 -> 1.35 | B138: 0.9757233578 | C138: =(B139-B138)/Sheet3!$I$5 -> 0.2141244609 | D138: 0.2190066871 | E138: =(D139-D138)/Sheet3!$I$5 -> -0.9768021202
A139: =A138+Sheet3!I$5 -> 1.36 | B139: 0.9778646024 | C139: =(B140-B139)/Sheet3!$I$5 -> 0.2043458963 | D139: 0.2092386659 | E139: =(D140-D139)/Sheet3!$I$5 -> -0.9788944894
A140: =A139+Sheet3!I$5 -> 1.37 | B140: 0.9799080614 | C140: =(B141-B140)/Sheet3!$I$5 -> 0.1945468974 | D140: 0.199449721 | E140: =(D141-D140)/Sheet3!$I$5 -> -0.98088897
A141: =A140+Sheet3!I$5 -> 1.38 | B141: 0.9818535304 | C141: =(B142-B141)/Sheet3!$I$5 -> 0.1847284439 | D141: 0.1896408313 | E141: =(D142-D141)/Sheet3!$I$5 -> -0.9827853625
A142: =A141+Sheet3!I$5 -> 1.39 | B142: 0.9837008148 | C142: =(B143-B142)/Sheet3!$I$5 -> 0.1748915177 | D142: 0.1798129777 | E142: =(D143-D142)/Sheet3!$I$5 -> -0.9845834773
A143: =A142+Sheet3!I$5 -> 1.40 | B143: 0.98544973 | C143: =(B144-B143)/Sheet3!$I$5 -> 0.1650371025 | D143: 0.1699671429 | E143: =(D144-D143)/Sheet3!$I$5 -> -0.9862831345
A144: =A143+Sheet3!I$5 -> 1.41 | B144: 0.987100101 | C144: =(B145-B144)/Sheet3!$I$5 -> 0.1551661838 | D144: 0.1601043116 | E144: =(D145-D144)/Sheet3!$I$5 -> -0.9878841643
A145: =A144+Sheet3!I$5 -> 1.42 | B145: 0.9886517629 | C145: =(B146-B145)/Sheet3!$I$5 -> 0.1452797485 | D145: 0.1502254699 | E145: =(D146-D145)/Sheet3!$I$5 -> -0.9893864065
A146: =A145+Sheet3!I$5 -> 1.43 | B146: 0.9901045603 | C146: =(B147-B146)/Sheet3!$I$5 -> 0.1353787855 | D146: 0.1403316058 | E146: =(D147-D146)/Sheet3!$I$5 -> -0.9907897109
A147: =A146+Sheet3!I$5 -> 1.44 | B147: 0.9914583482 | C147: =(B148-B147)/Sheet3!$I$5 -> 0.1254642846 | D147: 0.1304237087 | E147: =(D148-D147)/Sheet3!$I$5 -> -0.9920939371
A148: =A147+Sheet3!I$5 -> 1.45 | B148: 0.992712991 | C148: =(B149-B148)/Sheet3!$I$5 -> 0.1155372374 | D148: 0.1205027694 | E148: =(D149-D148)/Sheet3!$I$5 -> -0.9932989547
A149: =A148+Sheet3!I$5 -> 1.46 | B149: 0.9938683634 | C149: =(B150-B149)/Sheet3!$I$5 -> 0.1055986366 | D149: 0.1105697798 | E149: =(D150-D149)/Sheet3!$I$5 -> -0.9944046433
A150: =A149+Sheet3!I$5 -> 1.47 | B150: 0.9949243498 | C150: =(B151-B150)/Sheet3!$I$5 -> 0.09564947601 | D150: 0.1006257334 | E150: =(D151-D150)/Sheet3!$I$5 -> -0.9954108923
A151: =A150+Sheet3!I$5 -> 1.48 | B151: 0.9958808445 | C151: =(B152-B151)/Sheet3!$I$5 -> 0.08569075055 | D151: 0.09067162446 | E151: =(D152-D151)/Sheet3!$I$5 -> -0.996317601
A152: =A151+Sheet3!I$5 -> 1.49 | B152: 0.996737752 | C152: =(B153-B152)/Sheet3!$I$5 -> 0.07572345609 | D152: 0.08070844845 | E152: =(D153-D152)/Sheet3!$I$5 -> -0.9971246787
A153: =A152+Sheet3!I$5 -> 1.50 | B153: 0.9974949866 | C153: =(B154-B153)/Sheet3!$I$5 -> 0.06574858935 | D153: 0.07073720167 | E153: =(D154-D153)/Sheet3!$I$5 -> -0.9978320448
A154: =A153+Sheet3!I$5 -> 1.51 | B154: 0.9981524725 | C154: =(B155-B154)/Sheet3!$I$5 -> 0.0557671478 | D154: 0.06075888122 | E154: =(D155-D154)/Sheet3!$I$5 -> -0.9984396286
A155: =A154+Sheet3!I$5 -> 1.52 | B155: 0.998710144 | C155: =(B156-B155)/Sheet3!$I$5 -> 0.04578012959 | D155: 0.05077448493 | E155: =(D156-D155)/Sheet3!$I$5 -> -0.9989473692
A156: =A155+Sheet3!I$5 -> 1.53 | B156: 0.9991679453 | C156: =(B157-B156)/Sheet3!$I$5 -> 0.0357885334 | D156: 0.04078501124 | E156: =(D157-D156)/Sheet3!$I$5 -> -0.9993552159
A157: =A156+Sheet3!I$5 -> 1.54 | B157: 0.9995258306 | C157: =(B158-B157)/Sheet3!$I$5 -> 0.02579335839 | D157: 0.03079145908 | E157: =(D158-D157)/Sheet3!$I$5 -> -0.9996631279
A158: =A157+Sheet3!I$5 -> 1.55 | B158: 0.9997837642 | C158: =(B159-B158)/Sheet3!$I$5 -> 0.01579560406 | D158: 0.0207948278 | E158: =(D159-D158)/Sheet3!$I$5 -> -0.9998710745
A159: =A158+Sheet3!I$5 -> 1.56 | B159: 0.9999417202 | C159: =(B160-B159)/Sheet3!$I$5 -> 0.005796270187 | D159: 0.01079611706 | E159: =(D160-D159)/Sheet3!$I$5 -> -0.9999790348
A160: =A159+Sheet3!I$5 -> 1.57 | B160: 0.9999996829 | C160: =(B161-B160)/Sheet3!$I$5 -> -0.004203643309 | D160: 0.0007963267107 | E160: =(D161-D160)/Sheet3!$I$5 -> -0.999986998
A161: =A160+Sheet3!I$5 -> 1.58 | B161: 0.9999576465 | C161: =(B162-B161)/Sheet3!$I$5 -> -0.01420313644 | D161: -0.009203543269 | E161: =(D162-D161)/Sheet3!$I$5 -> -0.9998949633
A162: =A161+Sheet3!I$5 -> 1.59 | B162: 0.9998156151 | C162: =(B163-B162)/Sheet3!$I$5 -> -0.02420120928 | D162: -0.0192024929 | E162: =(D163-D162)/Sheet3!$I$5 -> -0.99970294
A163: =A162+Sheet3!I$5 -> 1.60 | B163: 0.999573603 | C163: =(B164-B163)/Sheet3!$I$5 -> -0.03419686201 | D163: -0.0291995223 | E163: =(D164-D163)/Sheet3!$I$5 -> -0.9994109472
A164: =A163+Sheet3!I$5 -> 1.61 | B164: 0.9992316344 | C164: =(B165-B164)/Sheet3!$I$5 -> -0.04418909509 | D164: -0.03919363177 | E164: =(D165-D164)/Sheet3!$I$5 -> -0.9990190141
A165: =A164+Sheet3!I$5 -> 1.62 | B165: 0.9987897435 | C165: =(B166-B165)/Sheet3!$I$5 -> -0.05417690929 | D165: -0.04918382191 | E165: =(D166-D165)/Sheet3!$I$5 -> -0.99852718
A166: =A165+Sheet3!I$5 -> 1.63 | B166: 0.9982479744 | C166: =(B167-B166)/Sheet3!$I$5 -> -0.06415930585 | D166: -0.05916909371 | E166: =(D167-D166)/Sheet3!$I$5 -> -0.997935494
A167: =A166+Sheet3!I$5 -> 1.64 | B167: 0.9976063813 | C167: =(B168-B167)/Sheet3!$I$5 -> -0.07413528653 | D167: -0.06914844865 | E167: =(D168-D167)/Sheet3!$I$5 -> -0.9972440153
A168: =A167+Sheet3!I$5 -> 1.65 | B168: 0.9968650285 | C168: =(B169-B168)/Sheet3!$I$5 -> -0.08410385374 | D168: -0.07912088881 | E168: =(D169-D168)/Sheet3!$I$5 -> -0.996452813
A169: =A168+Sheet3!I$5 -> 1.66 | B169: 0.9960239899 | C169: =(B170-B169)/Sheet3!$I$5 -> -0.09406401064 | D169: -0.08908541694 | E169: =(D170-D169)/Sheet3!$I$5 -> -0.9955619662
A170: =A169+Sheet3!I$5 -> 1.67 | B170: 0.9950833498 | C170: =(B171-B170)/Sheet3!$I$5 -> -0.1040147612 | D170: -0.0990410366 | E170: =(D171-D170)/Sheet3!$I$5 -> -0.9945715641
A171: =A170+Sheet3!I$5 -> 1.68 | B171: 0.9940432022 | C171: =(B172-B171)/Sheet3!$I$5 -> -0.1139551104 | D171: -0.1089867522 | E171: =(D172-D171)/Sheet3!$I$5 -> -0.9934817057
A172: =A171+Sheet3!I$5 -> 1.69 | B172: 0.9929036511 | C172: =(B173-B172)/Sheet3!$I$5 -> -0.1238840642 | D172: -0.1189215693 | E172: =(D173-D172)/Sheet3!$I$5 -> -0.9922924999
A173: =A172+Sheet3!I$5 -> 1.70 | B173: 0.9916648105 | C173: =(B174-B173)/Sheet3!$I$5 -> -0.1338006296 | D173: -0.1288444943 | E173: =(D174-D173)/Sheet3!$I$5 -> -0.9910040657
A174: =A173+Sheet3!I$5 -> 1.71 | B174: 0.9903268042 | C174: =(B175-B174)/Sheet3!$I$5 -> -0.1437038151 | D174: -0.138754535 | E174: =(D175-D174)/Sheet3!$I$5 -> -0.9896165319
A175: =A174+Sheet3!I$5 -> 1.72 | B175: 0.988889766 | C175: =(B176-B175)/Sheet3!$I$5 -> -0.1535926304 | D175: -0.1486507003 | E175: =(D176-D175)/Sheet3!$I$5 -> -0.9881300373
A176: =A175+Sheet3!I$5 -> 1.73 | B176: 0.9873538397 | C176: =(B177-B176)/Sheet3!$I$5 -> -0.1634660865 | D176: -0.1585320006 | E176: =(D177-D176)/Sheet3!$I$5 -> -0.9865447305
A177: =A176+Sheet3!I$5 -> 1.74 | B177: 0.9857191788 | C177: =(B178-B177)/Sheet3!$I$5 -> -0.1733231962 | D177: -0.1683974479 | E177: =(D178-D177)/Sheet3!$I$5 -> -0.98486077
A178: =A177+Sheet3!I$5 -> 1.75 | B178: 0.9839859469 | C178: =(B179-B178)/Sheet3!$I$5 -> -0.1831629736 | D178: -0.1782460556 | E178: =(D179-D178)/Sheet3!$I$5 -> -0.9830783243
A179: =A178+Sheet3!I$5 -> 1.76 | B179: 0.9821543171 | C179: =(B180-B179)/Sheet3!$I$5 -> -0.192984435 | D179: -0.1880768389 | E179: =(D180-D179)/Sheet3!$I$5 -> -0.9811975716
A180: =A179+Sheet3!I$5 -> 1.77 | B180: 0.9802244728 | C180: =(B181-B180)/Sheet3!$I$5 -> -0.202786598 | D180: -0.1978888146 | E180: =(D181-D180)/Sheet3!$I$5 -> -0.9792187
A181: =A180+Sheet3!I$5 -> 1.78 | B181: 0.9781966068 | C181: =(B182-B181)/Sheet3!$I$5 -> -0.2125684826 | D181: -0.2076810016 | E181: =(D182-D181)/Sheet3!$I$5 -> -0.9771419073
A182: =A181+Sheet3!I$5 -> 1.79 | B182: 0.976070922 | C182: =(B183-B182)/Sheet3!$I$5 -> -0.2223291104 | D182: -0.2174524207 | E182: =(D183-D182)/Sheet3!$I$5 -> -0.9749674012
A183: =A182+Sheet3!I$5 -> 1.80 | B183: 0.9738476309 | C183: =(B184-B183)/Sheet3!$I$5 -> -0.2320675056 | D183: -0.2272020947 | E183: =(D184-D183)/Sheet3!$I$5 -> -0.9726953992
A184: =A183+Sheet3!I$5 -> 1.81 | B184: 0.9715269558 | C184: =(B185-B184)/Sheet3!$I$5 -> -0.2417826942 | D184: -0.2369290487 | E184: =(D185-D184)/Sheet3!$I$5 -> -0.9703261284
A185: =A184+Sheet3!I$5 -> 1.82 | B185: 0.9691091289 | C185: =(B186-B185)/Sheet3!$I$5 -> -0.2514737047 | D185: -0.24663231 | E185: =(D186-D185)/Sheet3!$I$5 -> -0.9678598259
A186: =A185+Sheet3!I$5 -> 1.83 | B186: 0.9665943918 | C186: =(B187-B186)/Sheet3!$I$5 -> -0.2611395681 | D186: -0.2563109082 | E186: =(D187-D186)/Sheet3!$I$5 -> -0.9652967381
A187: =A186+Sheet3!I$5 -> 1.84 | B187: 0.9639829962 | C187: =(B188-B187)/Sheet3!$I$5 -> -0.2707793177 | D187: -0.2659638756 | E187: =(D188-D187)/Sheet3!$I$5 -> -0.9626371216
A188: =A187+Sheet3!I$5 -> 1.85 | B188: 0.961275203 | C188: =(B189-B188)/Sheet3!$I$5 -> -0.2803919896 | D188: -0.2755902468 | E188: =(D189-D188)/Sheet3!$I$5 -> -0.9598812421
A189: =A188+Sheet3!I$5 -> 1.86 | B189: 0.9584712831 | C189: =(B190-B189)/Sheet3!$I$5 -> -0.2899766226 | D189: -0.2851890592 | E189: =(D190-D189)/Sheet3!$I$5 -> -0.9570293752
A190: =A189+Sheet3!I$5 -> 1.87 | B190: 0.9555715169 | C190: =(B191-B190)/Sheet3!$I$5 -> -0.2995322581 | D190: -0.294759353 | E190: =(D191-D190)/Sheet3!$I$5 -> -0.9540818063
A191: =A190+Sheet3!I$5 -> 1.88 | B191: 0.9525761943 | C191: =(B192-B191)/Sheet3!$I$5 -> -0.3090579407 | D191: -0.3043001711 | E191: =(D192-D191)/Sheet3!$I$5 -> -0.9510388299
A192: =A191+Sheet3!I$5 -> 1.89 | B192: 0.9494856149 | C192: =(B193-B192)/Sheet3!$I$5 -> -0.3185527177 | D192: -0.3138105594 | E192: =(D193-D192)/Sheet3!$I$5 -> -0.9479007505
A193: =A192+Sheet3!I$5 -> 1.90 | B193: 0.9463000877 | C193: =(B194-B193)/Sheet3!$I$5 -> -0.3280156397 | D193: -0.3232895669 | E193: =(D194-D193)/Sheet3!$I$5 -> -0.9446678817
A194: =A193+Sheet3!I$5 -> 1.91 | B194: 0.9430199313 | C194: =(B195-B194)/Sheet3!$I$5 -> -0.3374457605 | D194: -0.3327362457 | E194: =(D195-D194)/Sheet3!$I$5 -> -0.941340547
A195: =A194+Sheet3!I$5 -> 1.92 | B195: 0.9396454737 | C195: =(B196-B195)/Sheet3!$I$5 -> -0.3468421369 | D195: -0.3421496512 | E195: =(D196-D195)/Sheet3!$I$5 -> -0.937919079
A196: =A195+Sheet3!I$5 -> 1.93 | B196: =SIN(A196) -> 0.9361770523 | C196: =(B197-B196)/Sheet3!$I$5 -> -0.3562038294 | D196: =COS(A196) -> -0.3515288419 | E196: =(D197-D196)/Sheet3!$I$5 -> -0.9344038199
A197: =A196+Sheet3!I$5 -> 1.94 | B197: 0.932615014 | C197: =(B198-B197)/Sheet3!$I$5 -> -0.3655299018 | D197: -0.3608728801 | E197: =(D198-D197)/Sheet3!$I$5 -> -0.9307951212
A198: =A197+Sheet3!I$5 -> 1.95 | B198: 0.928959715 | C198: =(B199-B198)/Sheet3!$I$5 -> -0.3748194216 | D198: -0.3701808314 | E198: =(D199-D198)/Sheet3!$I$5 -> -0.9270933437
A199: =A198+Sheet3!I$5 -> 1.96 | B199: 0.9252115208 | C199: =(B200-B199)/Sheet3!$I$5 -> -0.3840714597 | D199: -0.3794517648 | E199: =(D200-D199)/Sheet3!$I$5 -> -0.9232988577
A200: =A199+Sheet3!I$5 -> 1.97 | B200: 0.9213708062 | C200: =(B201-B200)/Sheet3!$I$5 -> -0.393285091 | D200: -0.3886847534 | E200: =(D201-D200)/Sheet3!$I$5 -> -0.9194120425
... 432 more rows
